[Event "23rd ETCC Women 2021"]
[Site "Catez"]
[Date "2021.11.21"]
[Round "9.23"]
[White "Klek, Hanna Marie"]
[Black "Simkunaite, Gabija"]
[Result "1-0"]
[ECO "B33"]
[WhiteElo "2343"]
[BlackElo "1962"]
[Annotator "NA"]
[PlyCount "69"]
[EventDate "2021.11.08"]
[EventType "team-tourn"]
[EventCountry "SLO"]
[SourceTitle "playchess.com"]
[Source "ChessBase"]
[SourceQuality "1"]
[WhiteTeam "Germany"]
[BlackTeam "Lithuania"]
[WhiteTeamCountry "GER"]
[BlackTeamCountry "LTU"]
[TimeControl "40/5400+30:1800+30"]

1. e4 {[%emt 0:00:03]} c5 {[%emt 0:00:14]} 2. Nf3 {[%emt 0:00:08]} Nc6 {
[%emt 0:00:15]} 3. d4 {[%emt 0:00:06]} cxd4 {[%emt 0:00:10]} 4. Nxd4 {[%emt 0:
00:06]} e5 {[%emt 0:01:09]} 5. Nb5 {[%emt 0:00:08]} d6 {[%emt 0:02:08]} 6. N1c3
{[%emt 0:00:09]} a6 {[%emt 0:00:31]} 7. Na3 {[%emt 0:00:07]} b5 {[%emt 0:00:04]
} 8. Nd5 {[%emt 0:00:08]} Nf6 {[%emt 0:01:09]} 9. Bg5 {[%emt 0:00:26]} Be7 {
[%emt 0:00:05]} 10. Bxf6 {[%emt 0:00:07]} Bxf6 {[%emt 0:00:11]} 11. c3 {
[%emt 0:00:11]} Bg5 {[%emt 0:01:56]} 12. Nc2 {[%emt 0:00:13]} Be6 {[%emt 0:09:
54]} 13. a4 {[%emt 0:00:53]} bxa4 {[%emt 0:14:54]} 14. Rxa4 {[%emt 0:00:12]}
O-O {[%emt 0:02:25]} 15. h4 {[%emt 0:04:53]} Bh6 {[%emt 0:05:58]} 16. Rxa6 {
[%emt 0:03:14]} Rxa6 {[%emt 0:00:30]} 17. Bxa6 {[%emt 0:00:07]} Bxd5 {[%emt 0:
01:02]} 18. Qxd5 {[%emt 0:02:34]} Ne7 {[%emt 0:02:19]} 19. Qd3 {[%emt 0:03:58]}
Qb6 {[%emt 0:01:29]} 20. b4 {[%emt 0:00:44]} f5 {[%emt 0:02:00]} 21. Bc4+ {
[%emt 0:02:23]} Kh8 {[%emt 0:02:04]} 22. O-O {[%emt 0:01:36]} fxe4 {[%emt 0:08:
59]} 23. Qxe4 {[%emt 0:00:21]} Nf5 {[%emt 0:05:04]} 24. Ra1 {[%emt 0:02:23]}
Qd8 {[%emt 0:06:13]} 25. Bd5 {[%emt 0:09:14]} g6 {[%emt 0:01:15]} 26. Ra8 {
[%emt 0:00:25]} Qf6 {[%emt 0:03:10]} 27. Rxf8+ {[%emt 0:00:34]} Bxf8 {[%emt 0:
00:05]} 28. b5 {[%emt 0:01:32]} Qd8 {[%emt 0:02:21]} 29. h5 {[%emt 0:02:47]}
Qb6 {[%emt 0:03:20]} 30. c4 {[%emt 0:00:50]} Bh6 {[%emt 0:08:19]} 31. Be6 {
[%emt 0:04:29]} Ne7 {[%emt 0:05:20]} 32. Qa8+ {[%emt 0:06:51]} Kg7 {[%emt 0:00:
04]} 33. Qe8 {[%emt 0:00:10]} Bg5 {[%emt 0:00:14]} 34. g4 {[%emt 0:01:58]} gxh5
{[%emt 0:03:02]} 35. Qf7+ {[%emt 0:00:10]} 1-0

[Event "23rd ETCC Women 2021"]
[Site "Catez"]
[Date "2021.11.21"]
[Round "9.24"]
[White "Sibajeva, Marija"]
[Black "Lubbe, Melanie"]
[Result "1/2-1/2"]
[ECO "B52"]
[WhiteElo "1946"]
[BlackElo "2311"]
[Annotator "NA"]
[PlyCount "120"]
[EventDate "2021.11.08"]
[EventType "team-tourn"]
[EventCountry "SLO"]
[SourceTitle "playchess.com"]
[Source "ChessBase"]
[SourceQuality "1"]
[WhiteTeam "Lithuania"]
[BlackTeam "Germany"]
[WhiteTeamCountry "LTU"]
[BlackTeamCountry "GER"]
[TimeControl "40/5400+30:1800+30"]

1. e4 {[%emt 0:00:02]} c5 {[%emt 0:00:04]} 2. Nf3 {[%emt 0:00:06]} d6 {[%emt 0:
00:03]} 3. Bb5+ {[%emt 0:00:16]} Bd7 {[%emt 0:00:08]} 4. Qe2 {[%emt 0:00:34]}
Nc6 {[%emt 0:08:17]} 5. Bxc6 {[%emt 0:03:46]} Bxc6 {[%emt 0:00:05]} 6. d4 {
[%emt 0:01:14]} cxd4 {[%emt 0:03:47]} 7. Nxd4 {[%emt 0:00:11]} Bd7 {[%emt 0:02:
55]} 8. O-O {[%emt 0:00:42]} Nf6 {[%emt 0:00:34]} 9. c4 {[%emt 0:09:56]} g6 {
[%emt 0:03:31]} 10. Nc3 {[%emt 0:01:22]} Bg7 {[%emt 0:00:11]} 11. Nb3 {[%emt 0:
06:48]} O-O {[%emt 0:01:11]} 12. f4 {[%emt 0:00:26]} a5 {[%emt 0:07:16]} 13. e5
{[%emt 0:02:01]} dxe5 {[%emt 0:05:57]} 14. fxe5 {[%emt 0:00:05]} Ng4 {[%emt 0:
01:06]} 15. Bf4 {[%emt 0:00:23]} a4 {[%emt 0:07:49]} 16. Nd4 {[%emt 0:04:48]}
Qb6 {[%emt 0:14:03]} 17. Rad1 {[%emt 0:00:06]} Rfd8 {[%emt 0:08:20]} 18. h3 {
[%emt 0:03:28]} Nh6 {[%emt 0:05:20]} 19. Qe3 {[%emt 0:01:06]} Be6 {[%emt 0:06:
17]} 20. Bxh6 {[%emt 0:07:28]} Bxc4 {[%emt 0:05:31]} 21. Nde2 {[%emt 0:09:25]}
Qxe3+ {[%emt 0:01:48]} 22. Bxe3 {[%emt 0:00:04]} Bxe5 {[%emt 0:00:07]} 23. Bb6
{[%emt 0:01:57]} Rdc8 {[%emt 0:05:07]} 24. Bd4 {[%emt 0:01:29]} Bxd4+ {[%emt 0:
03:07]} 25. Rxd4 {[%emt 0:00:10]} Bxe2 {[%emt 0:04:10]} 26. Nxe2 {[%emt 0:00:
03]} Rc2 {[%emt 0:00:06]} 27. Rf2 {[%emt 0:02:53]} Rxb2 {[%emt 0:00:03]} 28.
Nc3 {[%emt 0:00:37]} a3 {[%emt 0:02:13]} 29. Ra4 {[%emt 0:01:55]} Rxa4 {
[%emt 0:00:47]} 30. Nxa4 {[%emt 0:00:05]} Rb1+ {[%emt 0:00:26]} 31. Kh2 {
[%emt 0:01:40]} e5 {[%emt 0:01:29]} 32. Nc3 {[%emt 0:08:47]} Rb4 {[%emt 0:01:
12]} 33. Re2 {[%emt 0:01:01]} f6 {[%emt 0:00:46]} 34. Re4 {[%emt 0:11:12]} Rd4
{[%emt 0:01:16]} 35. Rxd4 {[%emt 0:04:18]} exd4 {[%emt 0:00:01]} 36. Nb1 {
[%emt 0:00:12]} d3 {[%emt 0:01:19]} 37. Kg3 {[%emt 0:00:01]} b5 {[%emt 0:00:25]
} 38. Kf3 {[%emt 0:00:20]} b4 {[%emt 0:00:06]} 39. Nd2 {[%emt 0:00:01]} Kf7 {
[%emt 0:00:41]} 40. Ke3 {[%emt 0:00:11]} Ke6 {[%emt 0:00:38]} 41. Kxd3 {
[%emt 0:30:04]} Kd5 {[%emt 0:31:23]} 42. Kc2 {[%emt 0:04:53]} Kd4 {[%emt 0:00:
00]} 43. Nf1 {[%emt 0:00:00]} f5 {[%emt 0:00:00]} 44. Kd2 {[%emt 0:00:00]} b3 {
[%emt 0:00:53]} 45. axb3 {[%emt 0:00:00]} a2 {[%emt 0:00:03]} 46. Ne3 {[%emt 0:
00:00]} a1=N {[%emt 0:00:09]} 47. b4 {[%emt 0:00:00]} f4 {[%emt 0:01:22]} 48.
Nc2+ {[%emt 0:00:00]} Nxc2 {[%emt 0:00:02]} 49. Kxc2 {[%emt 0:00:00]} Kc4 {
[%emt 0:00:21]} 50. b5 {[%emt 0:00:00]} Kxb5 {[%emt 0:00:02]} 51. Kd3 {[%emt 0:
00:00]} f3 {[%emt 0:02:03]} 52. gxf3 {[%emt 0:00:00]} Kc5 {[%emt 0:00:01]} 53.
Ke4 {[%emt 0:00:00]} Kd6 {[%emt 0:00:08]} 54. Kf4 {[%emt 0:00:00]} h6 {[%emt 0:
00:16]} 55. h4 {[%emt 0:00:12]} Ke6 {[%emt 0:00:19]} 56. Kg4 {[%emt 0:00:12]}
Ke5 {[%emt 0:01:12]} 57. f4+ {[%emt 0:00:12]} Kf6 {[%emt 0:01:07]} 58. h5 {
[%emt 0:00:14]} gxh5+ {[%emt 0:00:22]} 59. Kxh5 {[%emt 0:00:04]} Kf5 {[%emt 0:
00:04]} 60. Kxh6 {[%emt 0:00:04]} Kxf4 {[%emt 0:00:03]} 1/2-1/2

[Event "23rd ETCC Women 2021"]
[Site "Catez"]
[Date "2021.11.21"]
[Round "9.25"]
[White "Repkova, Eva"]
[Black "Brunello, Marina"]
[Result "0-1"]
[ECO "B53"]
[WhiteElo "2307"]
[BlackElo "2359"]
[Annotator "NA"]
[PlyCount "120"]
[EventDate "2021.11.08"]
[EventType "team-tourn"]
[EventCountry "SLO"]
[SourceTitle "playchess.com"]
[Source "ChessBase"]
[SourceQuality "1"]
[WhiteTeam "Slovakia"]
[BlackTeam "Italy"]
[WhiteTeamCountry "SVK"]
[BlackTeamCountry "ITA"]
[TimeControl "40/5400+30:1800+30"]

1. e4 {[%emt 0:00:16]} c5 {[%emt 0:00:07]} 2. Nf3 {[%emt 0:00:05]} d6 {[%emt 0:
00:04]} 3. d4 {[%emt 0:00:05]} cxd4 {[%emt 0:00:05]} 4. Qxd4 {[%emt 0:00:06]}
Nc6 {[%emt 0:00:21]} 5. Qe3 {[%emt 0:00:11]} Nf6 {[%emt 0:02:06]} 6. Be2 {
[%emt 0:00:18]} g6 {[%emt 0:01:04]} 7. O-O {[%emt 0:00:35]} Bg7 {[%emt 0:00:02]
} 8. Rd1 {[%emt 0:01:55]} O-O {[%emt 0:03:46]} 9. c4 {[%emt 0:04:48]} Qa5 {
[%emt 0:08:40]} 10. h3 {[%emt 0:15:06]} Nd7 {[%emt 0:01:07]} 11. Nc3 {[%emt 0:
00:16]} Nc5 {[%emt 0:07:27]} 12. Nd5 {[%emt 0:12:07]} f5 {[%emt 0:07:30]} 13.
b4 {[%emt 0:15:55]} Nxb4 {[%emt 0:02:06]} 14. Nxe7+ {[%emt 0:00:33]} Kh8 {
[%emt 0:00:53]} 15. Rb1 {[%emt 0:21:52]} Nc6 {[%emt 0:08:06]} 16. Bb2 {[%emt 0:
10:40]} Nxe7 {[%emt 0:07:07]} 17. Qh6 {[%emt 0:00:37]} Rf6 {[%emt 0:01:49]} 18.
Bxf6 {[%emt 0:01:06]} Bxf6 {[%emt 0:00:06]} 19. Qf8+ {[%emt 0:04:08]} Ng8 {
[%emt 0:00:05]} 20. e5 {[%emt 0:01:13]} Be7 {[%emt 0:08:52]} 21. Qe8 {[%emt 0:
00:22]} Ne4 {[%emt 0:00:10]} 22. exd6 {[%emt 0:02:55]} Nxd6 {[%emt 0:01:02]}
23. Rxd6 {[%emt 0:00:20]} Bxd6 {[%emt 0:00:04]} 24. Ng5 {[%emt 0:00:33]} Be7 {
[%emt 0:03:20]} 25. Nf7+ {[%emt 0:00:21]} Kg7 {[%emt 0:00:04]} 26. Bf3 {
[%emt 0:00:33]} Qxa2 {[%emt 0:07:45]} 27. Rc1 {[%emt 0:00:02]} Be6 {[%emt 0:01:
24]} 28. Qxa8 {[%emt 0:00:09]} Bxf7 {[%emt 0:00:09]} 29. Qxb7 {[%emt 0:00:08]}
Bxc4 {[%emt 0:01:01]} 30. h4 {[%emt 0:01:35]} Bf7 {[%emt 0:06:30]} 31. h5 {
[%emt 0:00:15]} Bd8 {[%emt 0:00:18]} 32. Re1 {[%emt 0:02:40]} a5 {[%emt 0:03:
06]} 33. Re2 {[%emt 0:00:22]} Qc4 {[%emt 0:00:20]} 34. Rd2 {[%emt 0:00:38]} Be7
{[%emt 0:01:15]} 35. g3 {[%emt 0:02:13]} Qb4 {[%emt 0:02:15]} 36. Qd7 {[%emt 0:
00:38]} Nf6 {[%emt 0:00:42]} 37. Qd3 {[%emt 0:00:20]} Ne4 {[%emt 0:00:35]} 38.
Rc2 {[%emt 0:01:07]} a4 {[%emt 0:04:07]} 39. Qe3 {[%emt 0:02:07]} Bg5 {[%emt 0:
02:13]} 40. Qe2 {[%emt 0:00:39]} Qd4 {[%emt 0:06:18]} 41. Rc7 {[%emt 0:00:42]}
Nxf2 {[%emt 0:20:26]} 42. Qa2 {[%emt 0:03:57]} Ne4+ {[%emt 0:00:49]} 43. Kh1 {
[%emt 0:02:33]} Qf6 {[%emt 0:01:38]} 44. Kg2 {[%emt 0:02:38]} a3 {[%emt 0:03:
52]} 45. Bxe4 {[%emt 0:12:30]} fxe4 {[%emt 0:00:23]} 46. Qxa3 {[%emt 0:00:04]}
Qe6 {[%emt 0:03:22]} 47. Qc5 {[%emt 0:01:34]} Qf6 {[%emt 0:02:03]} 48. h6+ {
[%emt 0:07:38]} Bxh6 {[%emt 0:00:28]} 49. Rc8 {[%emt 0:00:04]} Qf3+ {[%emt 0:
02:06]} 50. Kh2 {[%emt 0:00:09]} Qe2+ {[%emt 0:00:42]} 51. Kh1 {[%emt 0:00:06]}
Qh5+ {[%emt 0:00:08]} 52. Qxh5 {[%emt 0:00:06]} gxh5 {[%emt 0:00:03]} 53. Kg2 {
[%emt 0:00:20]} Bg5 {[%emt 0:01:15]} 54. Kf2 {[%emt 0:00:59]} h6 {[%emt 0:00:
15]} 55. Rc6 {[%emt 0:00:17]} e3+ {[%emt 0:00:35]} 56. Ke2 {[%emt 0:00:09]} Bd5
{[%emt 0:00:06]} 57. Rd6 {[%emt 0:01:09]} Bg2 {[%emt 0:00:07]} 58. Re6 {
[%emt 0:00:31]} Kf7 {[%emt 0:00:14]} 59. Re5 {[%emt 0:00:07]} Kf6 {[%emt 0:00:
10]} 60. Re8 {[%emt 0:00:12]} Kf5 {[%emt 0:00:29]} 0-1

[Event "23rd ETCC Women 2021"]
[Site "Catez"]
[Date "2021.11.21"]
[Round "9.26"]
[White "Zimina, Olga"]
[Black "Hagarova, Zuzana"]
[Result "1-0"]
[ECO "B08"]
[WhiteElo "2339"]
[BlackElo "2292"]
[Annotator "NA"]
[PlyCount "85"]
[EventDate "2021.11.08"]
[EventType "team-tourn"]
[EventCountry "SLO"]
[SourceTitle "playchess.com"]
[Source "ChessBase"]
[SourceQuality "1"]
[WhiteTeam "Italy"]
[BlackTeam "Slovakia"]
[WhiteTeamCountry "ITA"]
[BlackTeamCountry "SVK"]
[TimeControl "40/5400+30:1800+30"]

1. d4 {[%emt 0:00:05]} Nf6 {[%emt 0:00:10]} 2. Nf3 {[%emt 0:00:07]} g6 {
[%emt 0:00:13]} 3. Nc3 {[%emt 0:00:08]} Bg7 {[%emt 0:10:44]} 4. e4 {[%emt 0:01:
09]} d6 {[%emt 0:00:47]} 5. Be3 {[%emt 0:00:09]} c6 {[%emt 0:02:46]} 6. h3 {
[%emt 0:01:26]} Qa5 {[%emt 0:03:40]} 7. Bd3 {[%emt 0:13:06]} Nbd7 {[%emt 0:02:
28]} 8. O-O {[%emt 0:00:33]} O-O {[%emt 0:01:20]} 9. Qd2 {[%emt 0:03:16]} e5 {
[%emt 0:03:32]} 10. a3 {[%emt 0:23:14]} Qc7 {[%emt 0:03:12]} 11. Rad1 {[%emt 0:
00:16]} Re8 {[%emt 0:03:33]} 12. Rfe1 {[%emt 0:02:42]} Nb6 {[%emt 0:17:01]} 13.
Bh6 {[%emt 0:05:28]} Qe7 {[%emt 0:16:12]} 14. Bf1 {[%emt 0:01:44]} Bd7 {
[%emt 0:01:16]} 15. a4 {[%emt 0:01:16]} Rad8 {[%emt 0:09:28]} 16. a5 {[%emt 0:
01:34]} Nc8 {[%emt 0:09:57]} 17. Be3 {[%emt 0:03:30]} b5 {[%emt 0:01:58]} 18.
b4 {[%emt 0:01:04]} exd4 {[%emt 0:02:46]} 19. Bxd4 {[%emt 0:02:20]} Be6 {
[%emt 0:00:55]} 20. Qg5 {[%emt 0:06:45]} h6 {[%emt 0:01:54]} 21. Qc1 {[%emt 0:
01:20]} Kh7 {[%emt 0:04:54]} 22. Qb2 {[%emt 0:12:01]} c5 {[%emt 0:02:04]} 23.
Nd5 {[%emt 0:00:19]} Bxd5 {[%emt 0:00:36]} 24. exd5 {[%emt 0:00:08]} cxd4 {
[%emt 0:00:31]} 25. Rxe7 {[%emt 0:00:05]} Rxe7 {[%emt 0:00:14]} 26. Qxd4 {
[%emt 0:02:34]} Ne4 {[%emt 0:00:41]} 27. Qd3 {[%emt 0:00:02]} Nc3 {[%emt 0:00:
29]} 28. Rd2 {[%emt 0:01:41]} Rde8 {[%emt 0:00:29]} 29. Nd4 {[%emt 0:00:52]}
Nb1 {[%emt 0:00:34]} 30. Re2 {[%emt 0:00:35]} a6 {[%emt 0:00:31]} 31. c4 {
[%emt 0:02:41]} bxc4 {[%emt 0:00:29]} 32. Qxc4 {[%emt 0:00:59]} Na3 {[%emt 0:
00:34]} 33. Rxe7 {[%emt 0:07:51]} Nxe7 {[%emt 0:00:11]} 34. Qd3 {[%emt 0:00:47]
} Nb5 {[%emt 0:00:46]} 35. Nxb5 {[%emt 0:00:06]} axb5 {[%emt 0:00:29]} 36. Qxb5
{[%emt 0:00:02]} Rf8 {[%emt 0:00:24]} 37. Bd3 {[%emt 0:01:21]} Rc8 {[%emt 0:00:
39]} 38. g3 {[%emt 0:01:11]} Rc1+ {[%emt 0:00:26]} 39. Kg2 {[%emt 0:00:03]} Rc3
{[%emt 0:00:33]} 40. a6 {[%emt 0:00:23]} Nc8 {[%emt 0:00:20]} 41. h4 {[%emt 0:
33:00]} Bd4 {[%emt 0:03:56]} 42. h5 {[%emt 0:00:00]} Nb6 {[%emt 0:11:40]} 43.
Qe8 {[%emt 0:00:00]} 1-0

[Event "23rd ETCC Women 2021"]
[Site "Catez"]
[Date "2021.11.21"]
[Round "9.27"]
[White "Sucikova, Svetlana"]
[Black "Sedina, Elena"]
[Result "1/2-1/2"]
[ECO "D12"]
[WhiteElo "2197"]
[BlackElo "2263"]
[Annotator "NA"]
[PlyCount "74"]
[EventDate "2021.11.08"]
[EventType "team-tourn"]
[EventCountry "SLO"]
[SourceTitle "playchess.com"]
[Source "ChessBase"]
[SourceQuality "1"]
[WhiteTeam "Slovakia"]
[BlackTeam "Italy"]
[WhiteTeamCountry "SVK"]
[BlackTeamCountry "ITA"]
[TimeControl "40/5400+30:1800+30"]

1. Nf3 {[%emt 0:00:36]} d5 {[%emt 0:00:28]} 2. d4 {[%emt 0:01:02]} Nf6 {
[%emt 0:00:34]} 3. c4 {[%emt 0:00:53]} c6 {[%emt 0:00:22]} 4. e3 {[%emt 0:01:
15]} Bf5 {[%emt 0:01:21]} 5. Nc3 {[%emt 0:01:05]} e6 {[%emt 0:00:07]} 6. Nh4 {
[%emt 0:01:08]} Bg6 {[%emt 0:02:56]} 7. Be2 {[%emt 0:01:10]} Nbd7 {[%emt 0:00:
48]} 8. g3 {[%emt 0:02:10]} Bd6 {[%emt 0:04:18]} 9. Bd2 {[%emt 0:04:20]} dxc4 {
[%emt 0:14:27]} 10. Nxg6 {[%emt 0:06:36]} hxg6 {[%emt 0:00:06]} 11. Bxc4 {
[%emt 0:00:12]} a6 {[%emt 0:02:56]} 12. Qf3 {[%emt 0:05:23]} Qe7 {[%emt 0:04:
09]} 13. Ne4 {[%emt 0:09:06]} Bb4 {[%emt 0:12:28]} 14. Rd1 {[%emt 0:06:56]}
Nxe4 {[%emt 0:11:58]} 15. Qxe4 {[%emt 0:00:22]} Nf6 {[%emt 0:00:22]} 16. Qf3 {
[%emt 0:04:57]} g5 {[%emt 0:12:11]} 17. O-O {[%emt 0:13:00]} g4 {[%emt 0:04:14]
} 18. Qe2 {[%emt 0:03:35]} Bxd2 {[%emt 0:10:38]} 19. Rxd2 {[%emt 0:00:27]} Ne4
{[%emt 0:00:07]} 20. Rc2 {[%emt 0:01:25]} f5 {[%emt 0:09:59]} 21. f3 {[%emt 0:
03:19]} Nf6 {[%emt 0:00:12]} 22. Qd3 {[%emt 0:04:27]} gxf3 {[%emt 0:02:04]} 23.
Rxf3 {[%emt 0:00:25]} g6 {[%emt 0:01:20]} 24. Qb3 {[%emt 0:10:16]} Kf7 {
[%emt 0:01:27]} 25. e4 {[%emt 0:00:49]} Nxe4 {[%emt 0:00:19]} 26. Re2 {[%emt 0:
00:05]} Kg7 {[%emt 0:02:48]} 27. Bxe6 {[%emt 0:00:38]} Raf8 {[%emt 0:00:15]}
28. Bc4 {[%emt 0:03:53]} b5 {[%emt 0:00:59]} 29. Bd3 {[%emt 0:00:38]} Qd6 {
[%emt 0:00:31]} 30. Bxe4 {[%emt 0:03:02]} Qxd4+ {[%emt 0:00:21]} 31. Qe3 {
[%emt 0:00:07]} Qxe3+ {[%emt 0:00:17]} 32. Rfxe3 {[%emt 0:00:12]} fxe4 {
[%emt 0:00:02]} 33. Rxe4 {[%emt 0:00:10]} Rh5 {[%emt 0:01:20]} 34. Rc2 {
[%emt 0:02:45]} c5 {[%emt 0:00:10]} 35. Re6 {[%emt 0:00:31]} Rf6 {[%emt 0:00:
05]} 36. Re7+ {[%emt 0:01:26]} Rf7 {[%emt 0:00:04]} 37. Re6 {[%emt 0:00:19]}
Rf6 {[%emt 0:00:14]} 1/2-1/2

[Event "23rd ETCC Women 2021"]
[Site "Catez"]
[Date "2021.11.21"]
[Round "9.28"]
[White "Gueci, Tea"]
[Black "Mrvova, Alena"]
[Result "1-0"]
[ECO "B31"]
[WhiteElo "2242"]
[BlackElo "2174"]
[Annotator "NA"]
[PlyCount "89"]
[EventDate "2021.11.08"]
[EventType "team-tourn"]
[EventCountry "SLO"]
[SourceTitle "playchess.com"]
[Source "ChessBase"]
[SourceQuality "1"]
[WhiteTeam "Italy"]
[BlackTeam "Slovakia"]
[WhiteTeamCountry "ITA"]
[BlackTeamCountry "SVK"]
[TimeControl "40/5400+30:1800+30"]

1. e4 {[%emt 0:00:03]} c5 {[%emt 0:00:36]} 2. Nf3 {[%emt 0:00:04]} Nc6 {
[%emt 0:00:30]} 3. Bb5 {[%emt 0:00:06]} g6 {[%emt 0:00:40]} 4. c3 {[%emt 0:00:
09]} Nf6 {[%emt 0:00:36]} 5. Qe2 {[%emt 0:00:15]} Bg7 {[%emt 0:01:17]} 6. O-O {
[%emt 0:00:34]} O-O {[%emt 0:00:31]} 7. d4 {[%emt 0:00:24]} cxd4 {[%emt 0:01:
49]} 8. cxd4 {[%emt 0:00:08]} d5 {[%emt 0:01:44]} 9. e5 {[%emt 0:00:06]} Ne4 {
[%emt 0:00:32]} 10. Be3 {[%emt 0:00:20]} h6 {[%emt 0:03:13]} 11. Nbd2 {[%emt 0:
03:57]} Nxd2 {[%emt 0:00:54]} 12. Qxd2 {[%emt 0:00:53]} Kh7 {[%emt 0:00:51]}
13. Rac1 {[%emt 0:06:03]} Bd7 {[%emt 0:00:23]} 14. Rc5 {[%emt 0:11:20]} a6 {
[%emt 0:00:44]} 15. Bd3 {[%emt 0:05:08]} Bg4 {[%emt 0:02:57]} 16. Ne1 {[%emt 0:
09:08]} Qd7 {[%emt 0:07:10]} 17. f4 {[%emt 0:03:17]} Rfd8 {[%emt 0:06:48]} 18.
f5 {[%emt 0:08:52]} Bxf5 {[%emt 0:02:05]} 19. Bxf5 {[%emt 0:00:06]} gxf5 {
[%emt 0:00:03]} 20. Rf3 {[%emt 0:00:57]} Rh8 {[%emt 0:00:16]} 21. Nd3 {[%emt 0:
03:43]} f6 {[%emt 0:04:45]} 22. Rh3 {[%emt 0:12:27]} fxe5 {[%emt 0:13:57]} 23.
Bxh6 {[%emt 0:10:36]} f4 {[%emt 0:05:43]} 24. Bxf4+ {[%emt 0:06:06]} Qxh3 {
[%emt 0:00:10]} 25. gxh3 {[%emt 0:00:40]} exf4 {[%emt 0:00:14]} 26. Rxd5 {
[%emt 0:03:33]} Bxd4+ {[%emt 0:00:09]} 27. Kf1 {[%emt 0:00:34]} Kg8 {[%emt 0:
12:20]} 28. Qg2+ {[%emt 0:06:59]} Kf8 {[%emt 0:08:11]} 29. Nxf4 {[%emt 0:00:40]
} Rg8 {[%emt 0:00:10]} 30. Ne6+ {[%emt 0:01:55]} Kf7 {[%emt 0:00:08]} 31. Ng5+
{[%emt 0:00:46]} Ke8 {[%emt 0:00:29]} 32. Qg4 {[%emt 0:01:00]} Rf8+ {[%emt 0:
05:13]} 33. Ke1 {[%emt 0:00:10]} Rh8 {[%emt 0:01:05]} 34. Qd7+ {[%emt 0:00:56]}
Kf8 {[%emt 0:00:04]} 35. Ne6+ {[%emt 0:00:38]} Kf7 {[%emt 0:00:10]} 36. Nxd4 {
[%emt 0:00:11]} Nxd4 {[%emt 0:00:25]} 37. Rxd4 {[%emt 0:00:05]} Rh6 {[%emt 0:
00:08]} 38. Qf5+ {[%emt 0:00:50]} Ke8 {[%emt 0:01:15]} 39. Rg4 {[%emt 0:00:42]}
Rh8 {[%emt 0:00:10]} 40. Qg6+ {[%emt 0:00:33]} Kd7 {[%emt 0:00:46]} 41. Rd4+ {
[%emt 0:30:07]} Kc7 {[%emt 0:30:17]} 42. Qg3+ {[%emt 0:01:22]} Kb6 {[%emt 0:02:
31]} 43. Rd7 {[%emt 0:01:54]} Rac8 {[%emt 0:01:51]} 44. Qb3+ {[%emt 0:00:20]}
Kc5 {[%emt 0:00:18]} 45. Qd5+ {[%emt 0:00:31]} 1-0

[Event "23rd ETCC Women 2021"]
[Site "Catez"]
[Date "2021.11.21"]
[Round "9.29"]
[White "Danielian, Elina"]
[Black "Pilsova, Karolina"]
[Result "1-0"]
[ECO "A11"]
[WhiteElo "2450"]
[BlackElo "2281"]
[Annotator "ChessBase"]
[PlyCount "129"]
[EventDate "2021.11.08"]
[EventType "team-tourn"]
[EventCountry "SLO"]
[SourceTitle "playchess.com"]
[Source "ChessBase"]
[SourceQuality "1"]
[WhiteTeam "Armenia"]
[BlackTeam "Czech Republic"]
[WhiteTeamCountry "ARM"]
[BlackTeamCountry "CZE"]
[TimeControl "40/5400+30:1800+30"]

1. Nf3 {[%emt 0:00:03]} d5 {[%emt 0:00:06]} 2. g3 {[%emt 0:00:05]} Nf6 {
[%emt 0:00:07]} 3. Bg2 {[%emt 0:00:06]} c6 {[%emt 0:00:09]} 4. c4 {[%emt 0:00:
10]} Bg4 {[%emt 0:02:02]} 5. Ne5 {[%emt 0:00:50]} Be6 {[%emt 0:01:38]} 6. cxd5
{[%emt 0:00:07]} Bxd5 {[%emt 0:00:05]} 7. Nf3 {[%emt 0:00:04]} c5 {[%emt 0:00:
26]} 8. Nc3 {[%emt 0:00:14]} Bc6 {[%emt 0:00:06]} 9. O-O {[%emt 0:00:12]} e6 {
[%emt 0:01:10]} 10. d3 {[%emt 0:00:15]} Be7 {[%emt 0:04:28]} 11. e4 {[%emt 0:
00:33]} O-O {[%emt 0:01:19]} 12. Qe2 {[%emt 0:00:22]} b5 {[%emt 0:04:36]} 13.
Rd1 {[%emt 0:21:32]} b4 {[%emt 0:11:46]} 14. Nb1 {[%emt 0:00:05]} Bb7 {[%emt 0:
00:27]} 15. Nbd2 {[%emt 0:03:25]} Nc6 {[%emt 0:01:09]} 16. Nb3 {[%emt 0:05:21]}
Qb6 {[%emt 0:12:42]} 17. Be3 {[%emt 0:03:45]} Rac8 {[%emt 0:14:18]} 18. Rac1 {
[%emt 0:01:56]} Na5 {[%emt 0:01:35]} 19. Nfd2 {[%emt 0:06:49]} Rfd8 {[%emt 0:
04:56]} 20. Nxa5 {[%emt 0:18:42]} Qxa5 {[%emt 0:00:06]} 21. Nc4 {[%emt 0:01:29]
} Qb5 {[%emt 0:01:23]} 22. a3 {[%emt 0:01:07]} a5 {[%emt 0:04:26]} 23. a4 {
[%emt 0:01:54]} Qa6 {[%emt 0:00:55]} 24. h4 {[%emt 0:00:21]} Nd7 {[%emt 0:01:
09]} 25. h5 {[%emt 0:03:58]} h6 {[%emt 0:03:19]} 26. b3 {[%emt 0:02:52]} Bf6 {
[%emt 0:09:55]} 27. Qg4 {[%emt 0:00:23]} Kh8 {[%emt 0:04:17]} 28. Bf4 {[%emt 0:
01:37]} e5 {[%emt 0:01:47]} 29. Be3 {[%emt 0:00:04]} Nf8 {[%emt 0:01:20]} 30.
Bh3 {[%emt 0:14:31]} Rc7 {[%emt 0:01:33]} 31. Qf3 {[%emt 0:02:26]} Re8 {
[%emt 0:02:51]} 32. Rc2 {[%emt 0:06:48]} Kg8 {[%emt 0:01:33]} 33. Rdc1 {
[%emt 0:00:35]} Bc8 {[%emt 0:00:58]} 34. Bxc8 {[%emt 0:00:29]} Rexc8 {[%emt 0:
00:04]} 35. Qg4 {[%emt 0:01:34]} Kh8 {[%emt 0:01:09]} 36. f4 {[%emt 0:02:10]}
Nd7 {[%emt 0:05:31]} 37. Qf5 {[%emt 0:00:05]} Re8 {[%emt 0:01:31]} 38. Rf1 {
[%emt 0:00:04]} Re6 {[%emt 0:01:32]} 39. Kh2 {[%emt 0:01:24]} Kg8 {[%emt 0:00:
50]} 40. Rg2 {[%emt 0:00:07]} Kf8 {[%emt 0:00:35]} 41. g4 {[%emt 0:31:06]} Nb6
{[%emt 0:10:05]} 42. Nxe5 {[%emt 0:00:00]} Ke8 {[%emt 0:11:51]} 43. Nc4 {
[%emt 0:00:00]} Nxc4 {[%emt 0:00:38]} 44. dxc4 {[%emt 0:00:00]} Bd4 {[%emt 0:
00:22]} 45. Bxd4 {[%emt 0:00:00]} cxd4 {[%emt 0:00:03]} 46. e5 {[%emt 0:00:00]}
Kf8 {[%emt 0:03:07]} 47. Qe4 {[%emt 0:00:00]} Rd7 {[%emt 0:00:50]} 48. Rd2 {
[%emt 0:00:00]} Qb6 {[%emt 0:00:12]} 49. Rfd1 {[%emt 0:00:00]} d3 {[%emt 0:00:
55]} 50. Kg3 {[%emt 0:01:58]} f6 {[%emt 0:00:33]} 51. Rxd3 {[%emt 0:00:38]}
Rxd3+ {[%emt 0:00:10]} 52. Qxd3 {[%emt 0:00:04]} fxe5 {[%emt 0:00:14]} 53. f5 {
[%emt 0:02:24]} Re8 {[%emt 0:01:05]} 54. Qd6+ {[%emt 0:00:14]} Qxd6 {[%emt 0:
00:06]} 55. Rxd6 {[%emt 0:00:02]} e4 {[%emt 0:00:55]} 56. Rd2 {[%emt 0:00:13]}
Kf7 {[%emt 0:00:54]} 57. Kf4 {[%emt 0:00:20]} Kf6 {[%emt 0:00:43]} 58. Rd6+ {
[%emt 0:00:36]} Kf7 {[%emt 0:00:01]} 59. Ke3 {[%emt 0:00:09]} Re7 {[%emt 0:00:
41]} 60. Rd5 {[%emt 0:00:07]} Ra7 {[%emt 0:01:18]} 61. Kxe4 {[%emt 0:00:25]}
Re7+ {[%emt 0:00:09]} 62. Re5 {[%emt 0:00:07]} Ra7 {[%emt 0:00:06]} 63. c5 {
[%emt 0:00:34]} Rc7 {[%emt 0:00:50]} 64. Kd5 {[%emt 0:00:40]} Rd7+ {[%emt 0:00:
14]} 65. Kc4 {[%emt 0:00:05]} 1-0